fUSD/lending_fUSD_20241225
["ID","MTS","AMOUNT","RATE_DAILY","PERIOD"]
[346591792,1735121441561,-500.0,9.647e-05,2]
[346591793,1735121441573,-500.0,9.647e-05,2]
[346591794,1735121441583,-580.71,9.647e-05,2]
[346591795,1735121441599,-500.0,9.647e-05,2]
[346591796,1735121441608,-500.0,9.647e-05,2]
[346591797,1735121441620,-500.0,9.647e-05,2]
[346591798,1735121441629,-500.0,9.647e-05,2]
[346591799,1735121441639,-562.22,9.647e-05,2]
[346591800,1735121441650,-1001.52,9.647e-05,2]
[346591801,1735121441661,-500.0,9.647e-05,2]
[346591802,1735121441673,-500.0,9.647e-05,2]
[346591803,1735121441683,-500.0,9.647e-05,2]
[346591804,1735121441692,-500.0,9.647e-05,2]
[346591805,1735121441702,-500.0,9.647e-05,2]
[346591806,1735121441712,-500.0,9.647e-05,2]
[346591807,1735121441721,-500.0,9.647e-05,2]
[346591808,1735121441731,-500.0,9.647e-05,2]
[346591809,1735121441740,-500.0,9.647e-05,2]
[346591810,1735121441749,-500.0,9.647e-05,2]
[346591811,1735121441759,-613.96,9.647e-05,2]
[346591812,1735121441768,-500.0,9.647e-05,2]
[346591813,1735121441777,-500.0,9.647e-05,2]
[346591814,1735121441787,-500.0,9.647e-05,2]
[346591815,1735121441796,-500.0,9.647e-05,2]
[346591816,1735121441806,-500.0,9.647e-05,2]
[346591817,1735121441815,-502.17969275,9.647e-05,2]
[346591818,1735121441825,-500.0,9.647e-05,2]
[346591819,1735121441835,-567.43,9.647e-05,2]
[346591820,1735121441845,-500.0,9.647e-05,2]
[346591821,1735121441854,-542.45,9.647e-05,2]
[346591822,1735121441863,-525.92,9.647e-05,2]
[346591823,1735121441873,-500.0,9.647e-05,2]
[346591824,1735121441882,-500.0,9.647e-05,2]
[346591825,1735121441891,-500.0,9.647e-05,2]
[346591826,1735121441901,-508.06740123,9.647e-05,2]
[346591827,1735121441911,-500.0,9.647e-05,2]
[346591828,1735121441921,-1441.38,9.647e-05,2]
[346591829,1735121441930,-500.0,9.647e-05,2]
[346591830,1735121441940,-598.39,9.647e-05,2]
[346591831,1735121441949,-500.0,9.647e-05,2]
[346591832,1735121441958,-500.0,9.647e-05,2]
[346591833,1735121441967,-500.0,9.647e-05,2]
[346591834,1735121441977,-505.09604517,9.647e-05,2]
[346591835,1735121441987,-695.72,9.647e-05,2]
[346591836,1735121441996,-500.0,9.647e-05,2]
[346591837,1735121442006,-500.0,9.647e-05,2]
[346591838,1735121442016,-507.02647429,9.647e-05,2]
[346591839,1735121442026,-500.0,9.647e-05,2]
[346591840,1735121442035,-571.14975515,9.647e-05,2]
[346591841,1735121442045,-1567.56,9.647e-05,2]
[346591842,1735121442055,-500.0,9.647e-05,2]
[346591843,1735121442065,-515.6062027,9.647e-05,2]
[346591844,1735121442074,-500.0,9.647e-05,2]
[346591845,1735121442084,-563.82,9.647e-05,2]
[346591846,1735121442093,-500.0,9.647e-05,2]
[346591847,1735121442103,-507.48766273,9.647e-05,2]
[346591848,1735121442112,-509.59,9.647e-05,2]
[346591849,1735121442121,-1432.67,9.647e-05,2]
[346591850,1735121442131,-500.0,9.647e-05,2]
[346591851,1735121442140,-830.1,9.647e-05,2]
[346591852,1735121442150,-500.0,9.647e-05,2]
[346591853,1735121442159,-500.0,9.647e-05,2]
[346591854,1735121442169,-714.64,9.647e-05,2]
[346591855,1735121442180,-500.0,9.647e-05,2]
[346591856,1735121442190,-781.04,9.647e-05,2]
[346591857,1735121442199,-287.37833137,9.647e-05,2]
[346591858,1735121442209,-557.53617244,9.647e-05,2]
[346591859,1735121442219,-507.47,9.647e-05,2]
[346591860,1735121442228,-937.79,9.647e-05,2]
[346591861,1735121442238,-500.0,9.647e-05,2]
[346591862,1735121442247,-1069.58,9.647e-05,2]
[346591863,1735121442257,-886.64,9.647e-05,2]
[346591864,1735121442266,-500.0,9.647e-05,2]
[346591865,1735121442278,-500.0,9.647e-05,2]
[346591866,1735121442289,-603.43,9.647e-05,2]
[346591867,1735121442298,-500.0,9.647e-05,2]
[346591868,1735121442308,-501.41757041,9.647e-05,2]
[346591869,1735121442317,-500.0,9.647e-05,2]
[346591870,1735121442327,-500.0,9.647e-05,2]
[346591871,1735121442337,-500.0,9.647e-05,2]
[346591872,1735121442346,-505.18290836,9.647e-05,2]
[346591873,1735121442355,-723.44,9.647e-05,2]
[346591874,1735121442365,-1652.33,9.647e-05,2]
[346591875,1735121442374,-1173.57,9.647e-05,2]
[346591876,1735121442384,-500.0,9.647e-05,2]
[346591877,1735121442393,-500.0,9.647e-05,2]
[346591878,1735121442403,-500.0,9.647e-05,2]
[346591879,1735121442413,-614.35055523,9.647e-05,2]
[346591880,1735121442424,-1573.68,9.647e-05,2]
[346591881,1735121442434,-500.0,9.647e-05,2]
[346591882,1735121442444,-500.0,9.647e-05,2]
[346591883,1735121442453,-500.0,9.647e-05,2]
[346591884,1735121442462,-500.0,9.647e-05,2]
[346591885,1735121442472,-516.53021741,9.647e-05,2]
[346591886,1735121442482,-500.98320151,9.647e-05,2]
[346591887,1735121442491,-500.0,9.647e-05,2]
[346591888,1735121442500,-500.0,9.647e-05,2]
[346591889,1735121442510,-777.71,9.647e-05,2]
[346591890,1735121442519,-500.0,9.647e-05,2]
[346591891,1735121442529,-1198.76,9.647e-05,2]
[346591892,1735121442539,-501.09409217,9.647e-05,2]
[346591894,1735121442550,-583.59,9.647e-05,2]
[346591896,1735121442559,-500.0,9.647e-05,2]
[346591898,1735121442569,-500.9251545,9.647e-05,2]
[346591900,1735121442580,-331.84729283,9.647e-05,2]
[346591902,1735121442590,-500.0,9.647e-05,2]
[346591904,1735121442599,-597.89,9.647e-05,2]
[346591908,1735121442608,-500.0,9.647e-05,2]
[346591910,1735121442617,-498.36984744,9.647e-05,2]
[346591911,1735121442630,-500.0,9.647e-05,2]
[346591913,1735121442641,-500.0,9.647e-05,2]
[346591914,1735121442651,-500.0,9.647e-05,2]
[346591915,1735121442662,-500.0,9.647e-05,2]
[346591916,1735121442672,-500.0,9.647e-05,2]
[346591917,1735121442681,-500.0,9.647e-05,2]
[346591918,1735121442691,-501.22907656,9.647e-05,2]
[346591919,1735121442700,-681.28,9.647e-05,2]
[346591920,1735121442709,-500.0,9.647e-05,2]
[346591921,1735121442719,-500.0,9.647e-05,2]
[346591922,1735121442728,-610.42,9.647e-05,2]
[346591924,1735121442738,-500.0,9.647e-05,2]
[346591926,1735121442747,-500.0,9.647e-05,2]
[346591928,1735121442756,-500.0,9.647e-05,2]
[346591930,1735121442765,-502.73430013,9.647e-05,2]
[346591932,1735121442774,-525.16,9.647e-05,2]
[346591934,1735121442789,-770.41,9.647e-05,2]
[346591936,1735121442798,-500.0,9.647e-05,2]
[346591938,1735121442807,-1372.33,9.647e-05,2]
[346591940,1735121442816,-500.0,9.647e-05,2]
[346591942,1735121442825,-500.0,9.647e-05,2]
[346591944,1735121442835,-500.0,9.647e-05,2]
[346591946,1735121442844,-303.10695956,9.647e-05,2]
[346591948,1735121442853,-500.61390778,9.647e-05,2]
[346591950,1735121442862,-866.09,9.647e-05,2]
[346591952,1735121442872,-500.0,9.647e-05,2]
[346591954,1735121442881,-500.0,9.647e-05,2]
[346591956,1735121442890,-500.0,9.647e-05,2]
[346591973,1735121443031,-500.0,9.647e-05,2]
[346591975,1735121443052,-500.42528884,9.647e-05,2]
[346591977,1735121443061,-786.63,9.647e-05,2]
[346591978,1735121443070,-1072.75,9.647e-05,2]
[346591979,1735121443079,-557.77715768,9.647e-05,2]
[346591980,1735121443088,-981.74,9.647e-05,2]
[346591981,1735121443097,-1416.71,9.647e-05,2]
[346591982,1735121443106,-501.07040809,9.647e-05,2]
[346591983,1735121443114,-501.55510905,9.647e-05,2]
[346591984,1735121443123,-500.0,9.647e-05,2]
[346591985,1735121443132,-500.0,9.647e-05,2]
[346591986,1735121443141,-763.42,9.647e-05,2]
[346591987,1735121443150,-500.0,9.647e-05,2]
[346591988,1735121443159,-500.49810111,9.647e-05,2]
[346591989,1735121443167,-500.0,9.647e-05,2]
[346591990,1735121443178,-884.95,9.647e-05,2]
[346591991,1735121443188,-558.81,9.647e-05,2]
[346591992,1735121443198,-500.0,9.647e-05,2]
[346591993,1735121443208,-932.19,9.647e-05,2]
[346591994,1735121443217,-500.0,9.647e-05,2]
[346591995,1735121443226,-501.04865408,9.647e-05,2]
[346591996,1735121443236,-500.0,9.647e-05,2]
[346591998,1735121443245,-505.393119,9.647e-05,2]
[346592000,1735121443254,-662.95,9.647e-05,2]
[346592002,1735121443263,-3266.04,9.647e-05,2]
[346592004,1735121443272,-782.62,9.647e-05,2]
[346592006,1735121443282,-1457.68,9.647e-05,2]
[346592008,1735121443291,-2774.33,9.647e-05,2]
[346592010,1735121443300,-500.0,9.647e-05,2]
[346592012,1735121443310,-500.0,9.647e-05,2]
[346592014,1735121443319,-500.0,9.647e-05,2]
[346592016,1735121443329,-501.03849557,9.647e-05,2]
[346592018,1735121443338,-614.33,9.647e-05,2]
[346592020,1735121443347,-1032.51,9.647e-05,2]
[346592021,1735121443357,-868.66,9.647e-05,2]
[346592022,1735121443367,-501.32732649,9.647e-05,2]
[346592023,1735121443376,-1686.95,9.647e-05,2]
[346592024,1735121443386,-947.76,9.647e-05,2]
[346592025,1735121443396,-500.0,9.647e-05,2]
[346592026,1735121443405,-500.0,9.647e-05,2]
[346592027,1735121443415,-2625.49,9.647e-05,2]
[346592028,1735121443427,-693.15,9.647e-05,2]
[346592029,1735121443437,-879.26,9.647e-05,2]
[346592030,1735121443447,-639.80878794,9.647e-05,2]
[346592031,1735121443457,-500.0,9.647e-05,2]
[346592032,1735121443466,-1120.56,9.647e-05,2]
[346592033,1735121443476,-651.07,9.647e-05,2]
[346592034,1735121443485,-500.0,9.647e-05,2]
[346592035,1735121443495,-9705.56,9.647e-05,2]
[346592036,1735121443504,-500.0,9.647e-05,2]
[346592038,1735121443514,-2950.64,9.647e-05,2]
[346592040,1735121443523,-500.0,9.647e-05,2]
[346592041,1735121443533,-1954.16,9.647e-05,2]
[346592042,1735121443542,-500.0,9.647e-05,2]
[346592043,1735121443552,-1521.45,9.647e-05,2]
[346592044,1735121443562,-602.35,9.647e-05,2]
[346592045,1735121443571,-500.0,9.647e-05,2]
[346592046,1735121443584,-5241.9,9.647e-05,2]
[346592047,1735121443593,-663.43,9.647e-05,2]
[346592048,1735121443603,-15069.27,9.647e-05,2]
[346592049,1735121443612,-500.0,9.647e-05,2]
[346592050,1735121443622,-1726.83,9.647e-05,2]
[346592051,1735121443632,-500.0,9.647e-05,2]
[346592052,1735121443641,-1104.72,9.647e-05,2]
[346592053,1735121443652,-500.0,9.647e-05,2]
[346592054,1735121443661,-1127.64,9.647e-05,2]
[346592055,1735121443671,-534.94,9.647e-05,2]
[346592056,1735121443682,-1026.79,9.647e-05,2]
[346592057,1735121443691,-896.54,9.647e-05,2]
[346592058,1735121443701,-2966.46,9.647e-05,2]
[346592059,1735121443711,-500.0,9.647e-05,2]
[346592060,1735121443720,-1546.77,9.647e-05,2]
[346592061,1735121443729,-500.0,9.647e-05,2]
[346592062,1735121443739,-1386.75,9.647e-05,2]
[346592063,1735121443749,-607.57,9.647e-05,2]
[346592064,1735121443758,-674.58,9.647e-05,2]
[346592065,1735121443767,-500.0,9.647e-05,2]
[346592066,1735121443777,-1679.97,9.647e-05,2]
[346592067,1735121443786,-1492.35,9.647e-05,2]
[346592068,1735121443795,-13122.69,9.647e-05,2]
[346592069,1735121443804,-3728.81,9.647e-05,2]
[346592070,1735121443814,-561.67,9.647e-05,2]
[346592071,1735121443824,-500.0,9.647e-05,2]
[346592072,1735121443833,-1456.69,9.647e-05,2]
[346592073,1735121443843,-500.0,9.647e-05,2]
[346592074,1735121443852,-500.0,9.647e-05,2]
[346592075,1735121443861,-500.0,9.647e-05,2]
[346592076,1735121443870,-734.46,9.647e-05,2]
[346592077,1735121443879,-200.47871204,9.647e-05,2]
[346592078,1735121443888,-500.0,9.647e-05,2]
[346592079,1735121443897,-3844.01,9.647e-05,2]
[346592080,1735121443908,-949.27,9.647e-05,2]
[346592081,1735121443918,-1852.35,9.647e-05,2]
[346592082,1735121443928,-500.0,9.647e-05,2]
[346592083,1735121443938,-500.0,9.647e-05,2]
[346592084,1735121443947,-5197.85,9.647e-05,2]
[346592085,1735121443957,-1573.82,9.647e-05,2]
[346592086,1735121443966,-500.0,9.647e-05,2]
[346592087,1735121443976,-597.94,9.647e-05,2]
[346592088,1735121443989,-9501.48,9.647e-05,2]
[346592089,1735121444011,-500.0,9.647e-05,2]
[346592090,1735121444031,-537.41,9.647e-05,2]
[346592091,1735121444050,-500.0,9.647e-05,2]
[346592092,1735121444067,-500.0,9.647e-05,2]
[346592093,1735121444085,-500.0,9.647e-05,2]
[346592094,1735121444104,-3882.94,9.647e-05,2]
[346592095,1735121444122,-1703.23,9.647e-05,2]
[346592096,1735121444143,-6734.4,9.647e-05,2]
[346592097,1735121444160,-716.78,9.647e-05,2]
[346592098,1735121444179,-500.0,9.647e-05,2]
[346592099,1735121444193,-5704.66,9.647e-05,2]
[346592100,1735121444212,-2327.15,9.647e-05,2]
[346592101,1735121444226,-500.0,9.647e-05,2]
[346592102,1735121444243,-1699.39,9.647e-05,2]
[346592103,1735121444257,-940.67,9.647e-05,2]
[346592104,1735121444272,-2729.98,9.647e-05,2]
[346592105,1735121444287,-500.0,9.647e-05,2]
[346592106,1735121444304,-803.12,9.647e-05,2]
[346592107,1735121444324,-4917.21,9.647e-05,2]
[346592108,1735121444340,-843.37,9.647e-05,2]
[346592109,1735121444355,-784.4,9.647e-05,2]
[346592110,1735121444370,-10516.12,9.647e-05,2]
[346592111,1735121444385,-500.0,9.647e-05,2]
[346592112,1735121444401,-2540.72,9.647e-05,2]
[346592113,1735121444417,-500.0,9.647e-05,2]
[346592114,1735121444433,-237.27868555,9.647e-05,2]
[346592115,1735121444449,-1121.6,9.647e-05,2]
[346592116,1735121444464,-500.0,9.647e-05,2]
[346592117,1735121444479,-5236.29,9.647e-05,2]
[346592118,1735121444496,-1361.9,9.647e-05,2]
[346592119,1735121444511,-4545.88,9.647e-05,2]
[346592120,1735121444526,-6600.15,9.647e-05,2]
[346592121,1735121444541,-500.0,9.647e-05,2]
[346592122,1735121444556,-1071.33,9.647e-05,2]
[346592123,1735121444574,-500.0,9.647e-05,2]
[346592124,1735121444589,-500.0,9.647e-05,2]
[346592125,1735121444604,-500.0,9.647e-05,2]
[346592126,1735121444619,-595.64,9.647e-05,2]
[346592127,1735121444634,-6384.79,9.647e-05,2]
[346592128,1735121444651,-1995.53,9.647e-05,2]
[346592129,1735121444667,-500.0,9.647e-05,2]
[346592130,1735121444683,-16588.38,9.647e-05,2]
[346592131,1735121444698,-500.0,9.647e-05,2]
[346592132,1735121444714,-500.0,9.647e-05,2]
[346592133,1735121444730,-500.0,9.647e-05,2]
[346592134,1735121444745,-500.0,9.647e-05,2]
[346592135,1735121444760,-3184.37,9.647e-05,2]
[346592136,1735121444775,-452.85291989,9.647e-05,2]
[346592137,1735121444790,-500.0,9.647e-05,2]
[346592138,1735121444806,-1137.56,9.647e-05,2]
[346592139,1735121444820,-1693.06,9.647e-05,2]
[346592140,1735121444836,-500.0,9.647e-05,2]
[346592141,1735121444851,-500.0,9.647e-05,2]
[346592142,1735121444866,-7562.77,9.647e-05,2]
[346592143,1735121444881,-1211.06,9.647e-05,2]
[346592144,1735121444897,-500.0,9.647e-05,2]
[346592145,1735121444913,-2327.36,9.647e-05,2]
[346592146,1735121444929,-2177.93,9.647e-05,2]
[346592147,1735121444945,-500.0,9.647e-05,2]
[346592148,1735121444960,-1704.0,9.647e-05,2]
[346592149,1735121444976,-500.0,9.647e-05,2]
[346592150,1735121444992,-500.0,9.647e-05,2]
[346592151,1735121445006,-829.17,9.647e-05,2]
[346592152,1735121445022,-1421.94,9.647e-05,2]
[346592153,1735121445037,-1717.24,9.647e-05,2]
[346592154,1735121445053,-6920.22,9.647e-05,2]
[346592155,1735121445068,-500.0,9.647e-05,2]
[346592156,1735121445084,-1496.25,9.647e-05,2]
[346592157,1735121445099,-500.0,9.647e-05,2]
[346592158,1735121445114,-500.0,9.647e-05,2]
[346592159,1735121445129,-1317.1,9.647e-05,2]
[346592160,1735121445144,-513.88230219,9.647e-05,2]
[346592161,1735121445159,-511.7,9.647e-05,2]
[346592162,1735121445174,-1085.37,9.647e-05,2]
[346592163,1735121445191,-1025.95,9.647e-05,2]
[346592164,1735121445207,-500.0,9.647e-05,2]
[346592165,1735121445221,-1419.97,9.647e-05,2]
[346592166,1735121445238,-812.72,9.647e-05,2]
[346592167,1735121445253,-869.54,9.647e-05,2]
[346592168,1735121445269,-500.0,9.647e-05,2]
[346592169,1735121445285,-3301.81,9.647e-05,2]
[346592170,1735121445299,-1612.21,9.647e-05,2]
[346592171,1735121445314,-500.0,9.647e-05,2]
[346592172,1735121445330,-500.0,9.647e-05,2]
[346592173,1735121445347,-500.0,9.647e-05,2]
[346592174,1735121445363,-2029.64,9.647e-05,2]
[346592175,1735121445373,-608.8170654,9.647e-05,2]
[346592176,1735121445382,-500.0,9.648e-05,2]
[346592177,1735121445391,-920.93,9.648e-05,2]
[346592178,1735121445400,-1488.65,9.648e-05,2]
[346592179,1735121445410,-1437.59,9.648e-05,2]
[346592180,1735121445420,-1785.18,9.648e-05,2]
[346592181,1735121445430,-951.43,9.648e-05,2]
[346592182,1735121445439,-500.0,9.648e-05,2]
[346592183,1735121445449,-500.0,9.648e-05,2]
[346592184,1735121445459,-1306.16,9.648e-05,2]
[346592186,1735121445767,-1421.83,9.648e-05,2]
[346592187,1735121445804,-1013.58,9.648e-05,2]
[346592188,1735121445824,-1653.48,9.648e-05,2]
[346592189,1735121445834,-1070.49,9.648e-05,2]
[346592190,1735121445844,-2210.41,9.648e-05,2]
[346592191,1735121445853,-500.0,9.648e-05,2]
[346592192,1735121445862,-1283.79,9.648e-05,2]
[346592193,1735121445872,-877.49,9.648e-05,2]
[346592194,1735121445881,-1508.82,9.648e-05,2]
[346592195,1735121445890,-500.0,9.648e-05,2]
[346592196,1735121445899,-1554.05,9.648e-05,2]
[346592197,1735121445909,-500.0,9.648e-05,2]
[346592198,1735121445918,-978.36,9.648e-05,2]
[346592199,1735121445928,-662.42,9.648e-05,2]
[346592200,1735121445937,-783.59,9.648e-05,2]
[346592201,1735121445946,-1337.89,9.648e-05,2]
[346592202,1735121445956,-756.05,9.648e-05,2]
[346592203,1735121445965,-1322.28,9.648e-05,2]
[346592204,1735121445974,-514.08176042,9.648e-05,2]
[346592205,1735121445983,-769.14,9.648e-05,2]
[346592206,1735121445992,-500.0,9.648e-05,2]
[346592207,1735121446001,-2479.6,9.648e-05,2]
[346592208,1735121446010,-1468.56,9.648e-05,2]
[346592209,1735121446019,-560.03,9.648e-05,2]
[346592210,1735121446028,-769.15,9.648e-05,2]
[346592211,1735121446037,-920.74,9.648e-05,2]
[346592212,1735121446046,-2344.16,9.648e-05,2]
[346592213,1735121446055,-1805.59,9.648e-05,2]
[346592214,1735121446065,-504.67,9.648e-05,2]
[346592215,1735121446074,-1997.26,9.648e-05,2]
[346592216,1735121446083,-1613.18,9.648e-05,2]
[346592217,1735121446093,-666.36,9.648e-05,2]
[346592218,1735121446102,-1498.09,9.648e-05,2]
[346592219,1735121446111,-1943.67,9.648e-05,2]
[346592220,1735121446120,-1876.64,9.648e-05,2]
[346592221,1735121446131,-1700.79,9.648e-05,2]
[346592222,1735121446140,-1640.81,9.648e-05,2]
[346592223,1735121446151,-1682.31,9.648e-05,2]
[346592224,1735121446160,-8293.61,9.648e-05,2]
[346592225,1735121446169,-3527.51,9.648e-05,2]
[346592226,1735121446180,-500.0,9.648e-05,2]
[346592227,1735121446189,-3060.42,9.648e-05,2]
[346592228,1735121446198,-851.79,9.648e-05,2]
[346592229,1735121446207,-6706.68,9.648e-05,2]
[346592230,1735121446217,-1374.29,9.648e-05,2]
[346592231,1735121446226,-693.15,9.648e-05,2]
[346592232,1735121446235,-2619.72,9.648e-05,2]
[346592233,1735121446244,-3932.48,9.648e-05,2]
[346592234,1735121446254,-1374.79,9.648e-05,2]
[346592235,1735121446263,-2299.23,9.648e-05,2]
[346592236,1735121446272,-4634.96,9.648e-05,2]
[346592237,1735121446281,-3006.95,9.648e-05,2]
[346592238,1735121446290,-500.0,9.648e-05,2]
[346592239,1735121446299,-1326.72,9.648e-05,2]
[346592240,1735121446308,-888.61,9.648e-05,2]
[346592241,1735121446317,-500.0,9.648e-05,2]
[346592242,1735121446326,-9073.58,9.648e-05,2]
[346592243,1735121446336,-1921.57,9.648e-05,2]
[346592244,1735121446345,-53692.15,9.648e-05,2]
[346592245,1735121446354,-1503.02,9.648e-05,2]
[346592246,1735121446364,-1358.91,9.648e-05,2]
[346592247,1735121446373,-7360.32,9.648e-05,2]
[346592248,1735121446383,-2968.25,9.648e-05,2]
[346592249,1735121446392,-4009.21,9.648e-05,2]
[346592250,1735121446400,-2044.42,9.648e-05,2]
[346592251,1735121446410,-2747.14,9.648e-05,2]
[346592252,1735121446419,-1627.45,9.648e-05,2]
[346592253,1735121446429,-3457.91,9.648e-05,2]
[346592254,1735121446438,-1267.13,9.648e-05,2]
[346592255,1735121446447,-5671.23,9.648e-05,2]
[346592256,1735121446456,-500.0,9.648e-05,2]
[346592257,1735121446466,-20535.4,9.648e-05,2]
[346592258,1735121446475,-1689.17,9.648e-05,2]
[346592259,1735121446484,-802.01,9.648e-05,2]
[346592260,1735121446493,-1583.26,9.648e-05,2]
[346592261,1735121446502,-3634.08,9.648e-05,2]
[346592262,1735121446512,-3070.63,9.648e-05,2]
[346592263,1735121446521,-1166.31,9.648e-05,2]
[346592264,1735121446531,-1206.91,9.648e-05,2]
[346592265,1735121446540,-502.64399133,9.648e-05,2]
[346592266,1735121446551,-2467.73,9.648e-05,2]
[346592267,1735121446560,-935.87,9.648e-05,2]
[346592268,1735121446570,-500.0,9.648e-05,2]
[346592269,1735121446582,-9044.59,9.648e-05,2]
[346592270,1735121446591,-1862.97,9.648e-05,2]
[346592271,1735121446600,-1585.87,9.648e-05,2]
[346592272,1735121446609,-1772.41,9.648e-05,2]
[346592273,1735121446618,-1245.6,9.648e-05,2]
[346592274,1735121446627,-3339.8,9.648e-05,2]
[346592275,1735121446637,-2262.02,9.648e-05,2]
[346592276,1735121446646,-2692.77,9.648e-05,2]
[346592277,1735121446655,-2972.23,9.648e-05,2]
[346592278,1735121446664,-505.20921209,9.648e-05,2]
[346592279,1735121446674,-500.0,9.649e-05,2]
[346592280,1735121446683,-500.0,9.649e-05,2]
[346592281,1735121446692,-507.43957148,9.649e-05,2]
[346592282,1735121446703,-459.01441384,9.649e-05,2]
[346592283,1735121446712,-505.7822,9.649e-05,2]
[346592284,1735121446721,-500.0,9.649e-05,2]
[346592285,1735121446730,-500.0,9.649e-05,2]
[346592286,1735121446739,-544.42554178,9.649e-05,2]
[346592287,1735121446749,-500.0,9.649e-05,2]
[346592288,1735121446759,-500.0,9.649e-05,2]
[346592289,1735121446767,-500.0,9.649e-05,2]
[346592290,1735121446776,-500.0,9.649e-05,2]
[346592291,1735121446785,-500.0,9.649e-05,2]
[346592292,1735121446795,-500.0,9.649e-05,2]
[346592293,1735121446803,-500.0,9.649e-05,2]
[346592294,1735121446813,-500.0,9.649e-05,2]
[346592295,1735121446822,-500.0,9.649e-05,2]
[346592296,1735121446831,-500.0,9.649e-05,2]
[346592297,1735121446840,-505.19891319,9.649e-05,2]
[346592298,1735121446849,-564.73098524,9.649e-05,2]
[346592299,1735121446858,-500.0,9.649e-05,2]
[346592300,1735121446867,-500.0,9.649e-05,2]
[346592301,1735121446876,-500.0,9.649e-05,2]
[346592302,1735121446886,-500.0,9.649e-05,2]
[346592303,1735121446895,-500.0,9.649e-05,2]
[346592304,1735121446904,-500.0,9.649e-05,2]
[346592305,1735121446914,-500.0,9.649e-05,2]
[346592306,1735121446924,-641.71,9.649e-05,2]
[346592307,1735121446933,-754.77,9.649e-05,2]
[346592308,1735121446943,-500.0,9.649e-05,2]
[346592309,1735121446952,-518.89,9.649e-05,2]
[346592310,1735121446961,-500.0,9.649e-05,2]
[346592311,1735121446970,-500.0,9.649e-05,2]
[346592312,1735121446979,-500.0,9.649e-05,2]
[346592313,1735121446989,-833.33,9.649e-05,2]
[346592314,1735121446998,-500.0,9.649e-05,2]
[346592315,1735121447008,-500.0,9.649e-05,2]
[346592316,1735121447017,-500.0,9.649e-05,2]
[346592317,1735121447027,-500.0,9.649e-05,2]
[346592318,1735121447036,-500.0,9.649e-05,2]
[346592319,1735121447045,-500.0,9.649e-05,2]
[346592320,1735121447054,-500.0,9.649e-05,2]
[346592321,1735121447063,-1035.88,9.649e-05,2]
[346592322,1735121447072,-500.0,9.649e-05,2]
[346592323,1735121447082,-1283.86,9.649e-05,2]
[346592324,1735121447091,-500.0,9.649e-05,2]
[346592325,1735121447101,-500.0,9.649e-05,2]
[346592326,1735121447110,-1773.8,9.649e-05,2]
[346592327,1735121447119,-614.02,9.649e-05,2]
[346592328,1735121447128,-500.0,9.649e-05,2]
[346592329,1735121447138,-500.0,9.649e-05,2]
[346592330,1735121447147,-500.0,9.649e-05,2]
[346592331,1735121447157,-500.0,9.649e-05,2]
[346592332,1735121447166,-860.33,9.649e-05,2]
[346592333,1735121447176,-500.0,9.649e-05,2]
[346592334,1735121447186,-500.0,9.649e-05,2]
[346592335,1735121447195,-500.0,9.649e-05,2]
[346592336,1735121447205,-500.0,9.649e-05,2]
[346592337,1735121447214,-500.0,9.649e-05,2]
[346592338,1735121447223,-569.32,9.649e-05,2]
[346592339,1735121447233,-764.7,9.649e-05,2]
[346592340,1735121447242,-500.0,9.649e-05,2]
[346592341,1735121447251,-500.0,9.649e-05,2]
[346592342,1735121447261,-1260.5,9.649e-05,2]
[346592343,1735121447271,-500.0,9.649e-05,2]
[346592344,1735121447280,-500.0,9.649e-05,2]
[346592345,1735121447289,-1019.49,9.649e-05,2]
[346592346,1735121447298,-699.0,9.649e-05,2]
[346592347,1735121447307,-500.0,9.649e-05,2]
[346592348,1735121447316,-672.84,9.649e-05,2]
[346592349,1735121447325,-500.0,9.649e-05,2]
[346592350,1735121447335,-500.0,9.649e-05,2]
[346592351,1735121447344,-1504.08,9.649e-05,2]
[346592352,1735121447353,-1418.39,9.649e-05,2]